[Event "Titled Tuesday Blitz November 14 Late 2023"]
[White "Pein, Jonathan"]
[Black "Ferrufino, Boris"]
[WhiteFideId "417092"]
[BlackFideId "3300170"]
[WhiteElo "2394"]
[BlackElo "2182"]
[Result "1-0"]
[Round "5"]
[TimeControl "180+1"]
[Date "2023.11.14"]
[WhiteClock "0:00:03"]
[BlackClock "0:00:15"]
[Board "130"]

1. Nf3 {[%clk 0:03:00]}  Nf6 {[%clk 0:02:46]} 2. d4 {[%clk 0:03:00]}  d5 {[%clk 0:02:46]} 3. e3 {[%clk 0:02:58]}  e6 {[%clk 0:02:45]} 4. Bd3 {[%clk 0:02:58]}  Bd6 {[%clk 0:02:45]} 5. Nbd2 {[%clk 0:02:59]}  Nbd7 {[%clk 0:02:45]} 6. b3 {[%clk 0:02:59]}  e5 {[%clk 0:02:45]} 7. dxe5 {[%clk 0:02:58]}  Nxe5 {[%clk 0:02:46]} 8. Be2 {[%clk 0:02:53]}  O-O {[%clk 0:02:42]} 9. Bb2 {[%clk 0:02:53]}  Qe7 {[%clk 0:02:34]} 10. O-O {[%clk 0:02:50]}  c6 {[%clk 0:02:33]} 11. c4 {[%clk 0:02:49]}  dxc4 {[%clk 0:02:27]} 12. Nxc4 {[%clk 0:02:49]}  Nxc4 {[%clk 0:02:27]} 13. Bxc4 {[%clk 0:02:50]}  Bg4 {[%clk 0:02:27]} 14. h3 {[%clk 0:02:48]}  Bh5 {[%clk 0:02:27]} 15. Be2 {[%clk 0:02:35]}  Rad8 {[%clk 0:02:26]} 16. Qc2 {[%clk 0:02:35]}  Bg6 {[%clk 0:02:20]} 17. Qc4 {[%clk 0:02:35]}  Bb8 {[%clk 0:02:08]} 18. Rad1 {[%clk 0:02:23]}  Qc7 {[%clk 0:02:08]} 19. Bxf6 {[%clk 0:02:18]}  gxf6 {[%clk 0:02:07]} 20. Qg4 {[%clk 0:02:11]}  h5 {[%clk 0:01:40]} 21. Qh4 {[%clk 0:02:06]}  Kg7 {[%clk 0:01:40]} 22. g3 {[%clk 0:01:57]}  c5 {[%clk 0:01:31]} 23. Rxd8 {[%clk 0:01:41]}  Rxd8 {[%clk 0:01:31]} 24. Rc1 {[%clk 0:01:39]}  Qe7 {[%clk 0:01:27]} 25. Qc4 {[%clk 0:01:34]}  b6 {[%clk 0:01:27]} 26. Bf1 {[%clk 0:01:32]}  Qe4 {[%clk 0:01:21]} 27. Qe2 {[%clk 0:01:23]}  Qe7 {[%clk 0:01:08]} 28. Bg2 {[%clk 0:01:21]}  Rd7 {[%clk 0:00:59]} 29. Nh4 {[%clk 0:01:20]}  Qd8 {[%clk 0:00:59]} 30. Bf3 {[%clk 0:01:15]}  Rd2 {[%clk 0:00:58]} 31. Rd1 {[%clk 0:00:56]}  Rxd1+ {[%clk 0:00:40]} 32. Qxd1 {[%clk 0:00:57]}  Qxd1+ {[%clk 0:00:39]} 33. Bxd1 {[%clk 0:00:58]}  Be5 {[%clk 0:00:27]} 34. Be2 {[%clk 0:00:55]}  Kf8 {[%clk 0:00:24]} 35. Kf1 {[%clk 0:00:51]}  Ke7 {[%clk 0:00:24]} 36. Ke1 {[%clk 0:00:52]}  Bc3+ {[%clk 0:00:24]} 37. Kd1 {[%clk 0:00:51]}  Bb1 {[%clk 0:00:25]} 38. Bxh5 {[%clk 0:00:44]}  Bxa2 {[%clk 0:00:24]} 39. Kc2 {[%clk 0:00:44]}  Be1 {[%clk 0:00:23]} 40. f4 {[%clk 0:00:36]}  c4 {[%clk 0:00:20]} 41. b4 {[%clk 0:00:28]}  Bb3+ {[%clk 0:00:19]} 42. Kb2 {[%clk 0:00:26]}  Bxb4 {[%clk 0:00:20]} 43. Nf5+ {[%clk 0:00:25]}  Kf8 {[%clk 0:00:19]} 44. Nd4 {[%clk 0:00:26]}  Be1 {[%clk 0:00:16]} 45. Nxb3 {[%clk 0:00:25]}  cxb3 {[%clk 0:00:17]} 46. g4 {[%clk 0:00:24]}  Bd2 {[%clk 0:00:14]} 47. Kxb3 {[%clk 0:00:22]}  Bxe3 {[%clk 0:00:15]} 48. Ka4 {[%clk 0:00:20]}  Bxf4 {[%clk 0:00:15]} 49. Kb5 {[%clk 0:00:19]}  Be3 {[%clk 0:00:14]} 50. Ka6 {[%clk 0:00:18]}  Kg7 {[%clk 0:00:14]} 51. Kb5 {[%clk 0:00:16]}  Kh6 {[%clk 0:00:14]} 52. Bxf7 {[%clk 0:00:16]}  a5 {[%clk 0:00:14]} 53. Be6 {[%clk 0:00:12]}  Kg5 {[%clk 0:00:14]} 54. Ka4 {[%clk 0:00:10]}  Kh4 {[%clk 0:00:14]} 55. Bf5 {[%clk 0:00:08]}  Bg5 {[%clk 0:00:13]} 56. Kb5 {[%clk 0:00:07]}  Be3 {[%clk 0:00:13]} 57. Ka4 {[%clk 0:00:06]}  Kg3 {[%clk 0:00:14]} 58. Kb5 {[%clk 0:00:06]}  Bf2 {[%clk 0:00:13]} 59. Bc8 {[%clk 0:00:06]}  Kf4 {[%clk 0:00:13]} 60. Bf5 {[%clk 0:00:04]}  Ke5 {[%clk 0:00:13]} 61. Bc8 {[%clk 0:00:05]}  Kd4 {[%clk 0:00:14]} 62. Bf5 {[%clk 0:00:04]}  Kc3 {[%clk 0:00:14]} 63. Be6 {[%clk 0:00:05]}  Kb2 {[%clk 0:00:14]} 64. Bf5 {[%clk 0:00:04]}  Kb3 {[%clk 0:00:14]} 65. Be6+ {[%clk 0:00:04]}  Kc3 {[%clk 0:00:14]} 66. Bf7 {[%clk 0:00:03]}  Kb2 {[%clk 0:00:13]} 67. Be6 {[%clk 0:00:04]}  Ka3 {[%clk 0:00:13]} 68. Bf7 {[%clk 0:00:02]}  Kb2 {[%clk 0:00:12]} 69. Ka4 {[%clk 0:00:02]}  Kc1 {[%clk 0:00:13]} 70. Bc4 {[%clk 0:00:03]}  Kd2 {[%clk 0:00:13]} 71. Bb5 {[%clk 0:00:03]}  Ke3 {[%clk 0:00:13]} 72. Bd7 {[%clk 0:00:04]}  Kf4 {[%clk 0:00:14]} 73. Bf5 {[%clk 0:00:05]}  Kg3 {[%clk 0:00:14]} 74. Bd7 {[%clk 0:00:05]}  Kxh3 {[%clk 0:00:15]} 75. g5+ {[%clk 0:00:05]}  Kh4 {[%clk 0:00:15]} 76. g6 {[%clk 0:00:02]}  Be3 {[%clk 0:00:15]} 77. g7 {[%clk 0:00:02]}  b5+ {[%clk 0:00:15]} 78. Kxb5 {[%clk 0:00:02]}  a4 {[%clk 0:00:14]} 79. g8=Q {[%clk 0:00:03]}  a3 {[%clk 0:00:15]} 80. Qg4# {[%clk 0:00:03]} 1-0


[Site "https://www.chess.com"]

[Event "Titled Tuesday Blitz November 14 Late 2023"]
[White "Lalanne, Pablo"]
[Black "tandercat"]
[WhiteFideId "112151"]
[WhiteElo "2355"]
[BlackElo "2042"]
[Result "1-0"]
[Round "5"]
[TimeControl "180+1"]
[Date "2023.11.14"]
[WhiteClock "0:00:47"]
[BlackClock "0:01:10"]
[Board "133"]

1. e4 {[%clk 0:03:00]}  c5 {[%clk 0:02:57]} 2. Nf3 {[%clk 0:03:00]}  Nc6 {[%clk 0:02:57]} 3. d4 {[%clk 0:03:00]}  cxd4 {[%clk 0:02:58]} 4. Nxd4 {[%clk 0:03:01]}  e5 {[%clk 0:02:58]} 5. Nb5 {[%clk 0:03:00]}  d6 {[%clk 0:02:59]} 6. N1c3 {[%clk 0:03:00]}  a6 {[%clk 0:02:59]} 7. Na3 {[%clk 0:03:00]}  Be7 {[%clk 0:03:00]} 8. Nc4 {[%clk 0:03:00]}  b5 {[%clk 0:02:59]} 9. Ne3 {[%clk 0:03:00]}  Nf6 {[%clk 0:03:00]} 10. Ncd5 {[%clk 0:02:42]}  Nxe4 {[%clk 0:02:47]} 11. Nxe7 {[%clk 0:02:30]}  Nxe7 {[%clk 0:02:48]} 12. a4 {[%clk 0:02:17]}  b4 {[%clk 0:02:43]} 13. Nd5 {[%clk 0:02:04]}  Bb7 {[%clk 0:02:36]} 14. Nxb4 {[%clk 0:02:01]}  Nxf2 {[%clk 0:02:16]} 15. Kxf2 {[%clk 0:01:53]}  Qb6+ {[%clk 0:02:16]} 16. Be3 {[%clk 0:01:54]}  Qxb4 {[%clk 0:02:16]} 17. c3 {[%clk 0:01:38]}  Qh4+ {[%clk 0:02:14]} 18. g3 {[%clk 0:01:38]}  Qf6+ {[%clk 0:02:12]} 19. Kg1 {[%clk 0:01:35]}  Bxh1 {[%clk 0:02:09]} 20. Kxh1 {[%clk 0:01:35]}  O-O {[%clk 0:02:07]} 21. Bg2 {[%clk 0:01:35]}  Rad8 {[%clk 0:02:05]} 22. Qe2 {[%clk 0:01:35]}  d5 {[%clk 0:02:04]} 23. Rf1 {[%clk 0:01:34]}  Qe6 {[%clk 0:02:00]} 24. Bc5 {[%clk 0:01:32]}  Rfe8 {[%clk 0:01:52]} 25. Qh5 {[%clk 0:01:30]}  Ng6 {[%clk 0:01:43]} 26. Bh3 {[%clk 0:01:26]}  Qc6 {[%clk 0:01:40]} 27. b4 {[%clk 0:01:26]}  d4+ {[%clk 0:01:36]} 28. Bg2 {[%clk 0:01:24]}  Qe6 {[%clk 0:01:30]} 29. cxd4 {[%clk 0:01:14]}  exd4 {[%clk 0:01:29]} 30. b5 {[%clk 0:01:07]}  axb5 {[%clk 0:01:21]} 31. axb5 {[%clk 0:01:08]}  Rd5 {[%clk 0:01:21]} 32. Qxd5 {[%clk 0:01:03]}  Qxd5 {[%clk 0:01:18]} 33. Bxd5 {[%clk 0:01:03]}  Re5 {[%clk 0:01:18]} 34. Bxf7+ {[%clk 0:01:03]}  Kh8 {[%clk 0:01:19]} 35. Bxg6 {[%clk 0:01:01]}  hxg6 {[%clk 0:01:18]} 36. b6 {[%clk 0:00:47]}  Rxc5 {[%clk 0:01:10]} 37. b7 {[%clk 0:00:47]} 1-0


[Site "https://www.chess.com"]

[Event "Titled Tuesday Blitz November 14 Late 2023"]
[White "Burke, Paul"]
[Black "Eggleston, Thomas A"]
[WhiteFideId "2605767"]
[BlackFideId "412139"]
[WhiteElo "1848"]
[BlackElo "2339"]
[Result "1-0"]
[Round "5"]
[TimeControl "180+1"]
[Date "2023.11.14"]
[WhiteClock "0:00:05"]
[BlackClock "0:00:00"]
[Board "136"]

1. e4 {[%clk 0:01:51]}  e6 {[%clk 0:02:58]} 2. d4 {[%clk 0:01:51]}  d5 {[%clk 0:02:59]} 3. e5 {[%clk 0:01:51]}  c5 {[%clk 0:02:58]} 4. Qg4 {[%clk 0:01:51]}  Qa5+ {[%clk 0:02:57]} 5. c3 {[%clk 0:01:50]}  cxd4 {[%clk 0:02:55]} 6. Nf3 {[%clk 0:01:50]}  dxc3 {[%clk 0:02:54]} 7. bxc3 {[%clk 0:01:50]}  Nc6 {[%clk 0:02:49]} 8. Bd3 {[%clk 0:01:49]}  Bd7 {[%clk 0:02:36]} 9. O-O {[%clk 0:01:47]}  Nh6 {[%clk 0:02:33]} 10. Qg3 {[%clk 0:01:36]}  Qa4 {[%clk 0:02:12]} 11. h3 {[%clk 0:01:27]}  Nf5 {[%clk 0:01:59]} 12. Bxf5 {[%clk 0:01:26]}  exf5 {[%clk 0:01:59]} 13. Bf4 {[%clk 0:01:09]}  Be6 {[%clk 0:01:59]} 14. Nbd2 {[%clk 0:00:42]}  h6 {[%clk 0:01:58]} 15. h4 {[%clk 0:00:42]}  g6 {[%clk 0:01:56]} 16. Nb3 {[%clk 0:00:36]}  Be7 {[%clk 0:01:38]} 17. Nbd4 {[%clk 0:00:35]}  Nxd4 {[%clk 0:01:31]} 18. Nxd4 {[%clk 0:00:35]}  Qd7 {[%clk 0:01:29]} 19. a4 {[%clk 0:00:25]}  g5 {[%clk 0:01:13]} 20. hxg5 {[%clk 0:00:23]}  Rg8 {[%clk 0:01:10]} 21. Qd3 {[%clk 0:00:16]}  hxg5 {[%clk 0:01:07]} 22. Bd2 {[%clk 0:00:15]}  f4 {[%clk 0:00:55]} 23. Nb5 {[%clk 0:00:15]}  a6 {[%clk 0:00:50]} 24. Nd6+ {[%clk 0:00:14]}  Bxd6 {[%clk 0:00:50]} 25. exd6 {[%clk 0:00:14]}  Qxd6 {[%clk 0:00:28]} 26. Qd4 {[%clk 0:00:14]}  O-O-O {[%clk 0:00:26]} 27. Rab1 {[%clk 0:00:13]}  Rd7 {[%clk 0:00:24]} 28. Rb6 {[%clk 0:00:12]}  Qc7 {[%clk 0:00:20]} 29. Rfb1 {[%clk 0:00:12]}  Qc4 {[%clk 0:00:17]} 30. Qe5 {[%clk 0:00:11]}  Qe4 {[%clk 0:00:09]} 31. Qf6 {[%clk 0:00:11]}  Qf5 {[%clk 0:00:08]} 32. Qd4 {[%clk 0:00:10]}  Rc7 {[%clk 0:00:07]} 33. a5 {[%clk 0:00:09]}  Rd8 {[%clk 0:00:05]} 34. Qb4 {[%clk 0:00:08]}  Rdd7 {[%clk 0:00:04]} 35. Bc1 {[%clk 0:00:07]}  Qf6 {[%clk 0:00:03]} 36. Qf8+ {[%clk 0:00:06]}  Qd8 {[%clk 0:00:03]} 37. Qb4 {[%clk 0:00:05]}  Rc6 {[%clk 0:00:00]} 38. Rxb7 {[%clk 0:00:05]} 1-0


[Site "https://www.chess.com"]

[Event "Titled Tuesday Blitz November 14 Late 2023"]
[White "MathiasCasalaspro"]
[Black "Smirnov, Timofey"]
[BlackFideId "24176427"]
[WhiteElo "2473"]
[BlackElo "2099"]
[Result "1-0"]
[Round "5"]
[TimeControl "180+1"]
[Date "2023.11.14"]
[WhiteClock "0:01:09"]
[BlackClock "0:00:01"]
[Board "140"]

1. Nf3 {[%clk 0:03:00]}  d5 {[%clk 0:02:54]} 2. g3 {[%clk 0:03:01]}  Bf5 {[%clk 0:02:52]} 3. Bg2 {[%clk 0:03:02]}  e6 {[%clk 0:02:51]} 4. d3 {[%clk 0:03:02]}  Nf6 {[%clk 0:02:51]} 5. O-O {[%clk 0:03:03]}  Be7 {[%clk 0:02:51]} 6. Nbd2 {[%clk 0:03:04]}  h6 {[%clk 0:02:51]} 7. Re1 {[%clk 0:03:04]}  O-O {[%clk 0:02:50]} 8. e4 {[%clk 0:03:04]}  dxe4 {[%clk 0:02:50]} 9. dxe4 {[%clk 0:03:02]}  Bh7 {[%clk 0:02:49]} 10. e5 {[%clk 0:02:46]}  Nd5 {[%clk 0:02:42]} 11. c3 {[%clk 0:02:39]}  c6 {[%clk 0:02:39]} 12. Ne4 {[%clk 0:02:37]}  Nd7 {[%clk 0:02:34]} 13. c4 {[%clk 0:02:26]}  N5b6 {[%clk 0:02:34]} 14. b3 {[%clk 0:02:24]}  Bb4 {[%clk 0:02:31]} 15. Bd2 {[%clk 0:02:23]}  a5 {[%clk 0:02:28]} 16. a3 {[%clk 0:02:21]}  Bxd2 {[%clk 0:02:23]} 17. Qxd2 {[%clk 0:02:22]}  Re8 {[%clk 0:01:54]} 18. Nd6 {[%clk 0:02:21]}  Re7 {[%clk 0:01:49]} 19. Rac1 {[%clk 0:02:14]}  Qc7 {[%clk 0:01:44]} 20. Qe3 {[%clk 0:02:10]}  Rd8 {[%clk 0:01:29]} 21. Red1 {[%clk 0:02:07]}  Nf8 {[%clk 0:01:16]} 22. Nd4 {[%clk 0:02:03]}  Red7 {[%clk 0:01:06]} 23. b4 {[%clk 0:01:44]}  axb4 {[%clk 0:01:05]} 24. axb4 {[%clk 0:01:45]}  c5 {[%clk 0:00:54]} 25. N4b5 {[%clk 0:01:44]}  Qb8 {[%clk 0:00:44]} 26. bxc5 {[%clk 0:01:43]}  Nc8 {[%clk 0:00:37]} 27. Be4 {[%clk 0:01:39]}  Ng6 {[%clk 0:00:26]} 28. f4 {[%clk 0:01:36]}  Nge7 {[%clk 0:00:23]} 29. Bxh7+ {[%clk 0:01:35]}  Kxh7 {[%clk 0:00:23]} 30. Qe4+ {[%clk 0:01:21]}  g6 {[%clk 0:00:23]} 31. Rb1 {[%clk 0:01:21]}  Nc6 {[%clk 0:00:20]} 32. Nd4 {[%clk 0:01:17]}  N8e7 {[%clk 0:00:19]} 33. Nxc6 {[%clk 0:01:15]}  Nxc6 {[%clk 0:00:19]} 34. Rb6 {[%clk 0:01:14]}  Qa7 {[%clk 0:00:18]} 35. Rdb1 {[%clk 0:01:14]}  Qa2 {[%clk 0:00:08]} 36. Rxb7 {[%clk 0:01:10]}  Rxb7 {[%clk 0:00:07]} 37. Rxb7 {[%clk 0:01:11]}  Qa1+ {[%clk 0:00:06]} 38. Kg2 {[%clk 0:01:09]}  Qa2+ {[%clk 0:00:05]} 39. Kh3 {[%clk 0:01:08]}  Na5 {[%clk 0:00:03]} 40. Rxf7+ {[%clk 0:01:08]}  Kg8 {[%clk 0:00:03]} 41. Qxg6+ {[%clk 0:01:09]}  Kh8 {[%clk 0:00:01]} 42. Qg7# {[%clk 0:01:09]} 1-0


[Site "https://www.chess.com"]

[Event "Titled Tuesday Blitz November 14 Late 2023"]
[White "Desideri, Ricardo Maruchi"]
[Black "Curtis, John"]
[WhiteFideId "2110440"]
[BlackFideId "3200256"]
[WhiteElo "1975"]
[BlackElo "2167"]
[Result "1-0"]
[Round "5"]
[TimeControl "180+1"]
[Date "2023.11.14"]
[WhiteClock "0:00:48"]
[BlackClock "0:01:55"]
[Board "146"]

1. e4 {[%clk 0:03:00]}  e6 {[%clk 0:02:59]} 2. d4 {[%clk 0:03:00]}  d5 {[%clk 0:02:59]} 3. e5 {[%clk 0:03:00]}  c5 {[%clk 0:02:59]} 4. c3 {[%clk 0:03:00]}  Bd7 {[%clk 0:03:00]} 5. Nf3 {[%clk 0:03:00]}  Qb6 {[%clk 0:03:00]} 6. a3 {[%clk 0:02:58]}  Bb5 {[%clk 0:03:00]} 7. c4 {[%clk 0:02:31]}  Bxc4 {[%clk 0:02:57]} 8. Bxc4 {[%clk 0:02:29]}  dxc4 {[%clk 0:02:57]} 9. Qa4+ {[%clk 0:02:28]}  Qc6 {[%clk 0:02:58]} 10. Qxc4 {[%clk 0:02:28]}  cxd4 {[%clk 0:02:55]} 11. Qxd4 {[%clk 0:02:23]}  Bc5 {[%clk 0:02:54]} 12. Qc3 {[%clk 0:02:08]}  Ne7 {[%clk 0:02:51]} 13. O-O {[%clk 0:02:04]}  Nd5 {[%clk 0:02:50]} 14. Qc2 {[%clk 0:01:46]}  Bb6 {[%clk 0:02:48]} 15. Nc3 {[%clk 0:01:42]}  Nxc3 {[%clk 0:02:48]} 16. bxc3 {[%clk 0:01:41]}  h6 {[%clk 0:02:44]} 17. a4 {[%clk 0:01:25]}  Ba5 {[%clk 0:02:37]} 18. Ba3 {[%clk 0:01:17]}  Qxc3 {[%clk 0:02:10]} 19. Qxc3 {[%clk 0:01:14]}  Bxc3 {[%clk 0:02:10]} 20. Rac1 {[%clk 0:01:15]}  Ba5 {[%clk 0:02:10]} 21. Rc8+ {[%clk 0:01:10]}  Bd8 {[%clk 0:02:09]} 22. Rd1 {[%clk 0:00:58]}  Nc6 {[%clk 0:02:05]} 23. Rxa8 {[%clk 0:00:58]}  f6 {[%clk 0:02:05]} 24. exf6 {[%clk 0:00:55]}  gxf6 {[%clk 0:02:05]} 25. Nd4 {[%clk 0:00:48]}  Nxd4 {[%clk 0:01:58]} 26. Rxd4 {[%clk 0:00:48]}  e5 {[%clk 0:01:59]} 27. Rdxd8+ {[%clk 0:00:47]}  Kf7 {[%clk 0:01:55]} 28. Rxh8 {[%clk 0:00:48]} 1-0


[Site "https://www.chess.com"]

[Event "Titled Tuesday Blitz November 14 Late 2023"]
[White "Troff, Kayden"]
[Black "Martinez Alcantara, Jose Eduardo"]
[WhiteFideId "2047896"]
[BlackFideId "3805662"]
[WhiteElo "2821"]
[BlackElo "3031"]
[Result "0-1"]
[Round "6"]
[TimeControl "180+1"]
[Date "2023.11.14"]
[WhiteClock "0:00:06"]
[BlackClock "0:00:04"]
[Board "2"]

1. d4 {[%clk 0:03:00]}  Nf6 {[%clk 0:03:00]} 2. Nf3 {[%clk 0:03:01]}  e6 {[%clk 0:03:01]} 3. Bf4 {[%clk 0:03:01]}  b6 {[%clk 0:03:00]} 4. e3 {[%clk 0:03:01]}  Bb7 {[%clk 0:03:01]} 5. Nbd2 {[%clk 0:03:02]}  g6 {[%clk 0:03:02]} 6. c3 {[%clk 0:02:55]}  Bg7 {[%clk 0:03:02]} 7. Bd3 {[%clk 0:02:55]}  O-O {[%clk 0:03:02]} 8. h4 {[%clk 0:02:55]}  d6 {[%clk 0:03:01]} 9. h5 {[%clk 0:02:50]}  Nbd7 {[%clk 0:02:56]} 10. Ng5 {[%clk 0:02:37]}  e5 {[%clk 0:02:39]} 11. Bg3 {[%clk 0:02:25]}  Qe7 {[%clk 0:02:32]} 12. Bh4 {[%clk 0:01:50]}  Qe8 {[%clk 0:02:19]} 13. hxg6 {[%clk 0:01:46]}  hxg6 {[%clk 0:02:19]} 14. Qc2 {[%clk 0:01:40]}  c5 {[%clk 0:02:07]} 15. dxe5 {[%clk 0:01:36]}  Nxe5 {[%clk 0:02:06]} 16. Be2 {[%clk 0:01:26]}  Bxg2 {[%clk 0:02:01]} 17. Rg1 {[%clk 0:01:26]}  Bc6 {[%clk 0:01:51]} 18. O-O-O {[%clk 0:01:26]}  d5 {[%clk 0:01:38]} 19. f4 {[%clk 0:01:21]}  Ned7 {[%clk 0:01:29]} 20. f5 {[%clk 0:01:20]}  Ne5 {[%clk 0:01:23]} 21. Bg3 {[%clk 0:01:06]}  Nfd7 {[%clk 0:01:00]} 22. Bf4 {[%clk 0:00:55]}  Qe7 {[%clk 0:01:00]} 23. Ndf3 {[%clk 0:00:53]}  Rae8 {[%clk 0:00:53]} 24. Nh4 {[%clk 0:00:50]}  f6 {[%clk 0:00:34]} 25. Nxg6 {[%clk 0:00:18]}  Nxg6 {[%clk 0:00:33]} 26. Ne6 {[%clk 0:00:19]}  Nde5 {[%clk 0:00:10]} 27. Bxe5 {[%clk 0:00:16]}  Nxe5 {[%clk 0:00:11]} 28. Rxg7+ {[%clk 0:00:16]}  Qxg7 {[%clk 0:00:12]} 29. Nxg7 {[%clk 0:00:17]}  Kxg7 {[%clk 0:00:13]} 30. Bh5 {[%clk 0:00:17]}  Rh8 {[%clk 0:00:05]} 31. Qg2+ {[%clk 0:00:17]}  Kf8 {[%clk 0:00:05]} 32. Rg1 {[%clk 0:00:17]}  Re7 {[%clk 0:00:04]} 33. Bg6 {[%clk 0:00:14]}  d4 {[%clk 0:00:05]} 34. Qg3 {[%clk 0:00:12]}  d3 {[%clk 0:00:04]} 35. b3 {[%clk 0:00:11]}  c4 {[%clk 0:00:04]} 36. bxc4 {[%clk 0:00:09]}  Rd7 {[%clk 0:00:05]} 37. Rd1 {[%clk 0:00:09]}  Rh1 {[%clk 0:00:03]} 38. Rxh1 {[%clk 0:00:07]}  d2+ {[%clk 0:00:03]} 39. Kd1 {[%clk 0:00:06]}  Bxh1 {[%clk 0:00:03]} 40. Bh5 {[%clk 0:00:07]}  Bc6 {[%clk 0:00:03]} 41. Qh4 {[%clk 0:00:07]}  Ba4+ {[%clk 0:00:03]} 42. Ke2 {[%clk 0:00:08]}  d1=Q+ {[%clk 0:00:04]} 43. Kf2 {[%clk 0:00:09]}  Rd2+ {[%clk 0:00:04]} 44. Kg3 {[%clk 0:00:08]}  Qe1+ {[%clk 0:00:04]} 45. Kf4 {[%clk 0:00:06]}  Qxh4+ {[%clk 0:00:04]} 0-1


[Site "https://www.chess.com"]

[Event "Titled Tuesday Blitz November 14 Late 2023"]
[White "Nihal Sarin"]
[Black "Grischuk, Alexander"]
[WhiteFideId "25092340"]
[BlackFideId "4126025"]
[WhiteElo "3104"]
[BlackElo "2946"]
[Result "1/2-1/2"]
[Round "6"]
[TimeControl "180+1"]
[Date "2023.11.14"]
[WhiteClock "0:01:11"]
[BlackClock "0:00:47"]
[Board "4"]

1. Nf3 {[%clk 0:03:00]}  d5 {[%clk 0:02:59]} 2. e3 {[%clk 0:03:00]}  Nf6 {[%clk 0:02:59]} 3. c4 {[%clk 0:03:00]}  e6 {[%clk 0:02:59]} 4. b3 {[%clk 0:03:00]}  c5 {[%clk 0:02:58]} 5. Bb2 {[%clk 0:03:00]}  Nc6 {[%clk 0:02:58]} 6. cxd5 {[%clk 0:03:01]}  exd5 {[%clk 0:02:58]} 7. Bb5 {[%clk 0:03:02]}  Bd6 {[%clk 0:02:56]} 8. O-O {[%clk 0:03:02]}  O-O {[%clk 0:02:56]} 9. d4 {[%clk 0:03:03]}  cxd4 {[%clk 0:02:55]} 10. Nxd4 {[%clk 0:03:04]}  Bc7 {[%clk 0:02:54]} 11. Nd2 {[%clk 0:03:04]}  Nxd4 {[%clk 0:02:53]} 12. Bxd4 {[%clk 0:03:05]}  Qd6 {[%clk 0:02:52]} 13. g3 {[%clk 0:03:05]}  Bh3 {[%clk 0:02:51]} 14. Re1 {[%clk 0:03:05]}  Ba5 {[%clk 0:02:47]} 15. a3 {[%clk 0:03:02]}  Bxd2 {[%clk 0:02:43]} 16. Qxd2 {[%clk 0:03:03]}  Ne4 {[%clk 0:02:43]} 17. Qb2 {[%clk 0:03:00]}  Qg6 {[%clk 0:02:36]} 18. Bf1 {[%clk 0:02:24]}  Bxf1 {[%clk 0:02:15]} 19. Rxf1 {[%clk 0:02:25]}  h5 {[%clk 0:02:16]} 20. Rac1 {[%clk 0:02:10]}  Rac8 {[%clk 0:02:12]} 21. h4 {[%clk 0:01:42]}  a6 {[%clk 0:02:03]} 22. Rxc8 {[%clk 0:01:40]}  Rxc8 {[%clk 0:02:02]} 23. Rc1 {[%clk 0:01:41]}  Rxc1+ {[%clk 0:02:02]} 24. Qxc1 {[%clk 0:01:42]}  Qf5 {[%clk 0:02:03]} 25. Qb2 {[%clk 0:01:31]}  Qf3 {[%clk 0:01:57]} 26. Qc2 {[%clk 0:01:27]}  f6 {[%clk 0:01:48]} 27. Bc3 {[%clk 0:01:16]}  Kh7 {[%clk 0:01:42]} 28. Be1 {[%clk 0:01:16]}  Kh6 {[%clk 0:01:35]} 29. Qd3 {[%clk 0:01:11]}  Nc5 {[%clk 0:01:13]} 30. Qc2 {[%clk 0:01:11]}  Ne4 {[%clk 0:00:56]} 31. Qd3 {[%clk 0:01:10]}  Nc5 {[%clk 0:00:48]} 32. Qc2 {[%clk 0:01:11]}  Ne4 {[%clk 0:00:47]} 1/2-1/2


[Site "https://www.chess.com"]